Cogmind - Beta 10.1 @@@ ROGUE MODE // 2020.10.01 @ 23:22:09 Player: Geralt Result: Destroyed by H-55 Commando with Assault Rifle Performance ------------- Evolutions (2) 1000 Regions Visited (5) 1000 Robots Destroyed (55) 275 Value Destroyed (1670) 1670 Prototype IDs (1) 20 Alien Tech Used (0) 0 Bonus (-14) -14 TOTAL SCORE: 3951 Bonus ------- Friendly Fire -14 Cogmind --------- Core Integrity 0/550 Matter 300/300 Energy 100/100 System Corruption 5% Temperature Cool (0) Movement Core (300) Ox5 Location -8/Materials Parts ------- > --- POWER (1) -------- (None) > --- PROPULSION (4) --- (None) > --- UTILITY (4) ------ Large Storage Unit > --- WEAPON (2) ------- (None) > --- INVENTORY (10) --- Improved Ion Engine Particle Gun Improved Assault Rifle Improved Assault Rifle Peak State ------------ > --- POWER ------------ Improved Ion Engine > --- PROPULSION ------- Aluminum Leg Aluminum Leg Aluminum Leg Aluminum Leg > --- UTILITY ---------- Large Storage Unit Improved Sensor Array Signal Interpreter Drone Bay > --- WEAPON ----------- Improved Assault Rifle Improved Assault Rifle > --- INVENTORY -------- Ion Engine Light Deuterium Engine Light Treads Aluminum Leg Aluminum Leg Shield Generator Improved Assault Rifle Mining Claw [Rating: 22] Favorites ----------- Power Improved Ion Engine Engine Improved Ion Engine Propulsion Aluminum Leg Treads Light Treads Leg Aluminum Leg Utility Large Storage Unit Device Improved Sensor Array Storage Large Storage Unit Processor Signal Interpreter Weapon Shotgun Energy Gun Particle Gun Ballistic Gun Shotgun Slashing Weapon Katana Build | -11 -10 -10 -9 -9 -8 ------- Run | Scr Mat Min Mat Sto Mat Slots Evolved 4 | . . . 2 . 2 Power . | . . . . . . Propulsion 2 | . . . 1 . 1 Utility 2 | . . . 1 . 1 Weapon . | . . . . . . Parts Attached 75 | 7 5 . 27 14 22 Power 6 | 1 . . 1 1 3 Engine 6 | 1 . . 1 1 3 Core . | . . . . . . Reactor . | . . . . . . Propulsion 17 | 2 1 . 5 4 5 Treads 1 | . . . . . 1 Leg 16 | 2 1 . 5 4 4 Wheel . | . . . . . . Hover . | . . . . . . Flight . | . . . . . . Utility 24 | 1 2 . 10 5 6 Device 19 | . . . 9 5 5 Storage 3 | 1 1 . . . 1 Processor 2 | . 1 . 1 . . Hackware . | . . . . . . Protection . | . . . . . . Artifact . | . . . . . . Weapon 28 | 3 2 . 11 4 8 Energy Gun 7 | 2 1 . 2 1 1 Energy Cannon . | . . . . . . Ballistic Gun 13 | 1 1 . 6 2 3 Ballistic Cannon . | . . . . . . Launcher . | . . . . . . Special Weapon . | . . . . . . Impact Weapon . | . . . . . . Slashing Weapon 8 | . . . 3 1 4 Piercing Weapon . | . . . . . . Special Melee Weapon . | . . . . . . Unidentified Prototypes 1 | . . . . 1 . Parts Lost 23 | . 2 . 1 . 20 Power 3 | . . . . . 3 Propulsion 8 | . . . . . 8 Utility 5 | . . . . . 5 Weapon 7 | . 2 . 1 . 4 Highest Loss Streak 11 | . 1 . 1 . 11 Average Slot Usage (%) 97 | . 97 100 99 100 89 Engine 11 | . 14 14 11 11 8 Leg 31 | . 28 28 32 33 30 Device 9 | . . . 10 11 14 Storage 11 | . 14 14 11 11 9 Processor 10 | . 13 14 11 11 7 Energy Gun 7 | . 20 14 8 1 1 Ballistic Gun 13 | . 6 14 13 20 11 Slashing Weapon 1 | . . . . . 4 Naked Turns . | . . . . . . Heaviest Build 37 | 11 25 25 31 35 37 Greatest Support 40 | 20 20 20 30 30 40 Greatest Overweight (x) 8 | 2 1 1 1 1 8 Average Overweight (x) . | . . 1 . . . Largest Inventory Capacity 10 | 6 10 10 10 10 10 Average Capacity 9 | 5 9 10 10 10 10 Most Carried 10 | 6 9 10 10 10 10 Average Carried 8 | 3 7 9 9 9 7 Final Capacity 10 | 6 10 10 10 10 10 Final Carried 10 | 6 9 9 10 10 4 Class Distribution -------------------- 51% | Scavenger-Mutant 48% | Mutant Dominant Class ---------------- Mutant | -10/Materials Mutant | -10/Mines Scavenger-Mutant | -9/Materials Scavenger-Mutant | -9/Storage Scavenger-Mutant | -8/Materials Resources | -11 -10 -10 -9 -9 -8 ----------- Run | Scr Mat Min Mat Sto Mat Matter Collected 1578 | 270 68 8 383 423 426 Remotely . | . . . . . . Salvage Created 2329 | 59 280 32 434 804 720 Parts 125 | 1 16 8 28 42 30 Haulers Intercepted . | . . . . . . Recyclers Shooed 6 | . 2 1 1 1 1 Parts Field Recycled . | . . . . . . Retrieved Matter . | . . . . . . Parts Self-Destructed . | . . . . . . Prevented . | . . . . . . Kills | -11 -10 -10 -9 -9 -8 ------- Run | Scr Mat Min Mat Sto Mat Combat Hostiles Destroyed 45 | . 5 3 8 14 15 Melee 2 | . . . . . 2 Guns 43 | . 5 3 8 14 13 Classes Destroyed 10 | 1 3 . 1 3 2 Worker 2 | . . . . . 2 Builder 1 | . . . . 1 . Recycler 6 | 1 2 . 1 2 . Watcher 1 | . 1 . . . . Swarmer 9 | . 3 3 . . 3 Grunt 22 | . 2 . 6 6 8 Brawler 3 | . . . . 1 2 Duelist 2 | . . . . 1 1 Sentry 8 | . . . 2 6 . Hunter 1 | . . . . . 1 Best Kill Streak 6 | 1 4 2 2 5 6 Combat Bots Only 6 | . 3 2 2 4 6 Max Kills in Single Turn 2 | 1 1 1 1 2 1 Gunslinging . | . . . . . . Exploded . | . . . . . . Melee 1 | . . . . . 1 Uniques/NPCs Destroyed . | . . . . . . Combat | -11 -10 -10 -9 -9 -8 -------- Run | Scr Mat Min Mat Sto Mat Damage Taken 3049 | . 384 16 301 413 1935 Core 809 | . 94 . 90 68 557 Absorbed by Shields 338 | . . . 47 74 217 Core Remaining (%) 74 | 100 . 62 . 60 . Volleys Fired 186 | 7 38 6 27 43 65 Largest 2 | 2 2 2 2 2 2 Hottest 88 | 80 85 85 88 79 88 Shots Fired 314 | 11 58 12 54 86 93 Gun 314 | 11 58 12 54 86 93 Cannon . | . . . . . . Launcher . | . . . . . . Special . | . . . . . . Kinetic 241 | . 25 6 37 84 89 Thermal 73 | 11 33 6 17 2 4 Explosive . | . . . . . . Electromagnetic . | . . . . . . Robot Hit Streak 19 | 4 8 6 12 18 19 Robot Miss Streak 6 | 2 4 1 6 2 2 Penetration Max . | . . . . . . Secondary Targets 2 | . 1 . . . 1 Max Gunslinging Chain 1 | . 1 . . . 1 Shots Hit Robots 245 | 6 36 7 40 71 85 Core Hits 107 | 2 15 3 20 35 32 Critical Hits 3 | . . . . 3 . Critical Kills 1 | . . . . 1 . Critical Parts Destroyed 1 | . . . . 1 . Melee Attacks 30 | . . . 9 1 20 Impact . | . . . . . . Slashing 30 | . . . 9 1 20 Piercing . | . . . . . . Sneak Attacks 1 | . . . . . 1 Combat Hostiles . | . . . . . . Follow-up Attacks . | . . . . . . Damage Inflicted 3661 | 55 414 82 573 1096 1441 Guns 3413 | 55 414 82 573 1096 1193 Cannons . | . . . . . . Explosions . | . . . . . . Melee 248 | . . . . . 248 Ramming . | . . . . . . Kinetic 2726 | . 139 8 379 1068 1132 Thermal 687 | 55 275 74 194 28 61 Explosive . | . . . . . . Electromagnetic . | . . . . . . Impact . | . . . . . . Slashing 248 | . . . . . 248 Piercing . | . . . . . . Highest Corruption 5 | . . . . 1 5 Average Corruption 1 | . . . . 1 5 Corruption Purged . | . . . . . . Effects 2 | . . . . 1 1 Message Errors 2 | . . . . 1 1 Overload Shots . | . . . . . . Overflow Damage . | . . . . . . Projectiles . | . . . . . . Explosions . | . . . . . . Melee . | . . . . . . Knockbacks . | . . . . . . Impact . | . . . . . . Kinetic . | . . . . . . Secondary . | . . . . . . Self-Inflicted Damage . | . . . . . . Shots . | . . . . . . Rammed . | . . . . . . Targets Rammed . | . . . . . . Kicked . | . . . . . . Crushed . | . . . . . . Highest Temperature 201 | 72 130 88 201 33 36 Average Temperature 44 | 38 40 43 61 13 16 Received Heat Transfer 770 | . 111 . 140 156 363 Siege Activations . | . . . . . . Robots Corrupted . | . . . . . . Combat Hostiles . | . . . . . . Parts Fried . | . . . . . . Impact Corruptions . | . . . . . . Robots Melted . | . . . . . . Combat Hostiles . | . . . . . . Parts Melted . | . . . . . . Heat Transferred 1599 | 125 623 185 444 74 148 Parts Sabotaged . | . . . . . . Parts Stolen . | . . . . . . Parts Stripped . | . . . . . . Power Chain Reactions . | . . . . . . Missiles Intercepted . | . . . . . . Alert | -11 -10 -10 -9 -9 -8 ------- Run | Scr Mat Min Mat Sto Mat Peak Influence 289 | 5 165 70 120 289 163 Initial 60 | . 3 . 27 42 60 Average 81 | . 64 60 76 134 68 Maximum Alert Level 1 | . . . . 1 . Low Security (%) 96 | 100 100 100 100 83 100 Level 1 3 | . . . . 16 . Level 2 . | . . . . . . Level 3 . | . . . . . . Level 4 . | . . . . . . Level 5 . | . . . . . . High Security . | . . . . . . Max Security . | . . . . . . Squads Dispatched 8 | . 3 . 1 . 4 Investigation . | . . . . . . Extermination . | . . . . . . Reinforcement 5 | . 3 . 1 . 1 Assault . | . . . . . . Garrison 3 | . . . . . 3 Intercept . | . . . . . . Construction Impeded . | . . . . . . Haulers Reinforced . | . . . . . . Stealth | -11 -10 -10 -9 -9 -8 --------- Run | Scr Mat Min Mat Sto Mat Distress Signals 6 | . 1 2 1 . 2 Communications Jammed . | . . . . . . Distress Signals . | . . . . . . Times Spotted 71 | . 13 4 12 17 25 Peak Tracking Total 5 | . 3 3 3 5 5 Tactical Retreats 9 | . 1 1 3 1 3 Traps | -11 -10 -10 -9 -9 -8 ------- Run | Scr Mat Min Mat Sto Mat Traps Triggered 1 | . . . . 1 . Indirectly . | . . . . . . Trap Hack Attempts . | . . . . . . Triggered . | . . . . . . Disarmed . | . . . . . . Reprogrammed . | . . . . . . Reused . | . . . . . . Traps Extracted . | . . . . . . Installed . | . . . . . . Triggered . | . . . . . . Machines | -11 -10 -10 -9 -9 -8 ---------- Run | Scr Mat Min Mat Sto Mat Machines Disabled . | . . . . . . Max in Single Turn . | . . . . . . Machines Sabotaged . | . . . . . . Garrisons Compromised . | . . . . . . Overloaded Fab Kills . | . . . . . . Fab Network Shutdowns . | . . . . . . Hacking | -11 -10 -10 -9 -9 -8 --------- Run | Scr Mat Min Mat Sto Mat Machines Accessed 9 | . . . 5 3 1 Terminals 5 | . . . 3 2 . Fabricators . | . . . . . . Repair Stations 1 | . . . 1 . . Recycling Units 3 | . . . 1 1 1 Scanalyzers . | . . . . . . Garrison Access . | . . . . . . Total Hacks 14 | . . . 8 4 2 Successful 12 | . . . 8 2 2 Failed 2 | . . . . 2 . Catastrophic . | . . . . . . Database Lockouts . | . . . . . . Manual . | . . . . . . Terminals 5 | . . . 3 2 . Fabricators . | . . . . . . Repair Stations 4 | . . . 4 . . Recycling Units 5 | . . . 1 2 2 Scanalyzers . | . . . . . . Garrison Access . | . . . . . . Terminal Hacks 4 | . . . 3 1 . Record 1 | . . . 1 . . Open Door 1 | . . . . 1 . Emergency Access Points 1 | . . . 1 . . Locate Traps 1 | . . . 1 . . Fabricator Hacks . | . . . . . . Repair Station Hacks 4 | . . . 4 . . Scan Component 2 | . . . 2 . . Repair 2 | . . . 2 . . Recycling Unit Hacks 4 | . . . 1 1 2 Report Inventory 3 | . . . 1 1 1 Retrieve Components 1 | . . . . . 1 Scanalyzer . | . . . . . . Garrison Access Hacks . | . . . . . . Unauthorized Hacks . | . . . . . . Terminals . | . . . . . . Fabricators . | . . . . . . Repair Stations . | . . . . . . Recycling Units . | . . . . . . Scanalyzers . | . . . . . . Garrison Access . | . . . . . . Data Cores Recovered . | . . . . . . Used . | . . . . . . Hacking Detections 4 | . . . 2 2 . Full Trace Events . | . . . . . . Feedback Events . | . . . . . . Feedback Blocked . | . . . . . . Robot Schematics Acquired . | . . . . . . Robots Built . | . . . . . . Matter . | . . . . . . Time . | . . . . . . Total Robot Build Rating . | . . . . . . Part Schematics Acquired . | . . . . . . Parts Built . | . . . . . . Matter . | . . . . . . Time . | . . . . . . Total Part Build Rating . | . . . . . . Parts Repaired 2 | . . . 2 . . Time 52 | . . . 52 . . Parts Recycled . | . . . . . . Recycled Matter . | . . . . . . Retrieved Matter . | . . . . . . Retrieved Components 2 | . . . . . 2 Parts Scanalyzed . | . . . . . . Part Schematics Acquired . | . . . . . . Parts Damaged . | . . . . . . Bothacking | -11 -10 -10 -9 -9 -8 ------------ Run | Scr Mat Min Mat Sto Mat Used RIF Installer . | . . . . . . Robots Hacked . | . . . . . . Non-combat . | . . . . . . Combat . | . . . . . . Robot Hacks Applied . | . . . . . . Relay Couplers Released . | . . . . . . Robots Rewired . | . . . . . . Allies Hacked . | . . . . . . Hacks Repelled . | . . . . . . Allies | -11 -10 -10 -9 -9 -8 -------- Run | Scr Mat Min Mat Sto Mat Total Allies . | . . . . . . Largest Group . | . . . . . . Highest-Rated Group . | . . . . . . Highest-Rated Ally . | . . . . . . Total Orders 7 | . . . . 5 2 STAY 1 | . . . . . 1 FOLLOW 2 | . . . . 2 . EXPLORE 2 | . . . . 1 1 RETURN 2 | . . . . 2 . Ally Attacks . | . . . . . . Total Damage . | . . . . . . Kills . | . . . . . . Allies Corrupted . | . . . . . . Allies Melted . | . . . . . . Intel | -11 -10 -10 -9 -9 -8 ------- Run | Scr Mat Min Mat Sto Mat Robot Analysis Total . | . . . . . . Derelict Logs Recovered 1 | . . 1 . . . Drone Launches 18 | . . . . 16 2 Drone Recoveries 3 | . . . . 2 1 Exploration | -11 -10 -10 -9 -9 -8 ------------- Run | Scr Mat Min Mat Sto Mat Turns Passed 2845 | 116 422 213 928 617 549 Spaces Moved 1323 | 71 206 126 487 267 166 Core 14 | 9 . . . . 5 Treads 16 | . . . . . 16 Legs 1293 | 62 206 126 487 267 145 Wheels . | . . . . . . Hover . | . . . . . . Flight . | . . . . . . Fastest Speed 50 | 50 120 150 120 120 120 Average Speed 131 | 116 139 150 121 134 137 Slowest Speed 450 | 150 150 150 150 150 450 Overloaded Moves . | . . . . . . Propulsion Burnouts . | . . . . . . Robots Hopped . | . . . . . . Cave-ins Triggered . | . . . . . . Exploration Rate (%) 31 | 4 24 36 43 64 15 Regions Visited 5 Branch Regions 2 Pre-discovered Areas . | . . . . . . Known Exits Taken 2 | . . . 1 1 . Unknown Exits Taken 3 | 1 1 1 . . . Scrap Searched 2 | . . 2 . . . Spaces Dug 10 | . . . 5 1 4 Terrain Destroyed 10 | . . . 5 1 4 Melee 10 | . . . 5 1 4 Projectile . | . . . . . . AOE . | . . . . . . Terrain Rammed . | . . . . . . Walls Destroyed . | . . . . . . Machines Disabled . | . . . . . . Actions | -11 -10 -10 -9 -9 -8 --------- Run | Scr Mat Min Mat Sto Mat Total 2055 | 90 286 141 745 438 355 Wait 388 | . 33 2 183 93 77 Move 1318 | 70 205 125 486 266 166 Hop . | . . . . . . Pick Up 27 | 6 4 4 5 4 4 Fast Attach 15 | 6 2 . 2 2 3 Attach 13 | . 1 . 3 . 9 Detach . | . . . . . . Swap 47 | 1 2 . 22 12 10 Drop 25 | . 1 4 8 10 2 Fire 186 | 7 38 6 27 43 65 Melee 29 | . . . 9 1 19 Ram . | . . . . . . Kick . | . . . . . . Crush . | . . . . . . Escape Stasis . | . . . . . . Rewire . | . . . . . . Trap . | . . . . . . Miscellaneous 7 | . . . . 7 . Route ------- -11/Scrapyard -10/Materials -10/Mines -9/Materials -9/Storage -8/Materials History --------- Turn | Location | Event 2 | -11/Scrapyard | Met Revision 17 11 | -11/Scrapyard | Discovered new exit (range 16) 117 | -11/Scrapyard | Entered Materials 312 | -10/Materials | Build established: Mutant 369 | -10/Materials | Discovered new exit (range 14) 539 | -10/Materials | Entered Mines 540 | -10/Mines | Assembled infested the area 549 | -10/Mines | Learned Materials terminal intel 741 | -10/Mines | Discovered new exit (range 7) 752 | -10/Mines | Entered Materials 752 | -9/Materials | Evolved 2 slots: Propulsion x1, Utility x1 753 | -9/Materials | Loaded intel: 12 terminal locations 1311 | -9/Materials | Repaired Sensor Array 1338 | -9/Materials | Repaired Aluminum Leg 1484 | -9/Materials | Build established: Scavenger-Mutant 1632 | -9/Materials | Discovered new exit (range 7) 1679 | -9/Materials | Identified exit to Storage 1680 | -9/Materials | Entered Storage 2000 | -9/Storage | Build established: Mutant 2106 | -9/Storage | Discovered new exit (range 47) 2291 | -9/Storage | Identified exit to Materials 2297 | -9/Storage | Entered Materials 2297 | -8/Materials | Accompanied by 4 allies 2297 | -8/Materials | Evolved 2 slots: Propulsion x1, Utility x1 2335 | -8/Materials | Build established: Scavenger-Mutant 2590 | -8/Materials | Garrison activated, responded to threat 2669 | -8/Materials | Lost 3 parts (2n1u) 2802 | -8/Materials | Core integrity fell below 50% 2818 | -8/Materials | Lost 11 parts (1p5n4u1w) 2839 | -8/Materials | Core integrity fell below 20% 2846 | -8/Materials | Destroyed by H-55 Commando with Assault Rifle Last Messages --------------- 02820_ OU8CSG96/HAKHMCHBSOHB7AJAEPJ%I4: Z,% 02821_ Penetrated by Slug. 02824_ Slug penetrates Wall. 02827_ Lgt. Treads destroyed. 02829_ Penetrated by Slug. 02830_ K-01 Serf collects debris. 02832_ Penetrated by Slug. 02832_ Ion Engine destroyed. 02834_ K-01 Serf collects debris. 02834_ Slug penetrates Door. 02835_ Penetrated by Slug. 02837_ Mining Claw destroyed. 02838_ Penetrated by Slug. 02840_ Lgt. Deuterium Engine destroyed. 02841_ Penetrated by Slug. 02844_ K-01 Serf destroyed. 02846_ Penetrated by Slug. 02846_ Katana destroyed. 02846_ Penetrated by Slug. 02846_ H-55 Commando destroyed. Map ----- +----------------------------------------------------+ | ??????????????????????????????????????????# ???##? | | ??????????????????????????????????????????# ??? ? | | ??????????????????????????????????????????# ??? | | ????????????????????????????????????????"?# ##? ! | | ???????????????????????????????????????? ?# # | | ?????????????????????? ???????????????? # + " | | ???????????????????? ???????????????? # # "G | | ????????????????????" ?????????????????+ # " | | ????????????????????" ?????????????????# " | | ????????????????????" ?????????????????# """" | | ??????????????# ?""" ?????????????????# " | | ??????????????# """ ?????????????????# %" | | ??????????????+ ?????????????????# " | | ??????????????# #????????????????# " | | ??????????????# ########?????????#% " | | ??????????????# # ????????# " | | ??????????????# "" # """"" #???????# " | | ??????????????# T" #] """"" ######### " | | ??????????????# "" # """"" ## T # #" | | ??????????????# # ## # #### | | ??????????????# # = ## """ %= ## | | ?????????????????????# + ! !!!## """ # ## | | ?????????????????????# # !!!## """ # %##! | | ?????????????????????# o# ! !! ## # ## | | ??????????? ####### ##############+### ## | | ?????????# = !% %*@ h % %## | | ?????????# Y ## | | ?????????# % a ## " | | ?????????# ########;###### ####### ## " | | ?????????###+???????? ?????#! !#?????# ## " | | ???????????????????# ?????#! !#?????# ## | | ???????????????????# ?????##!!!!##?????# #### | | ???????????????????# ??????######??????# | | ???????????????????#! ??????????????????# | | ???????????????????# ??????????????????# | | ???????????????????# ??????????????????######## | | ???????????????????# ?????????????????????????? | | ???????????????????# ??????????????????????????? | | ???????????????????####??????????????????????????? | | ?????????????????????????????????????????????????? | | ?????????????????????????????????????????????????? | | ?????????????????????????????????????????????????? | | ?????????????????????????????????????????????????? | | | | | | | | | | | | | | | +----------------------------------------------------+ Best States ------------- Heat Dissipation 31 Energy Generation 14 Energy Capacity 265 Matter Stores 314 Matter Capacity 350 Sight Range 16 Robot Scan Range 13 Terrain Scan Density 10 Evasion (%) 40 Targeting Accuracy 5 Recoil Reduction 1 Item Schematics ----------------- None Robot Schematics ------------------ None Fabricated ------------ Nothing Alien Tech Used ----------------- None Achievements -------------- Hey, That's Mine! Part-time Excavator Part-time Mechanic Release The Drones! Risk Taker Storm Trooper Troublemaker Challenges ------------ None Game ------ Seed DeuteriumTerrabombPerforator Manual? 0 Play Time 01:01:41 Cumulative 2.7 hours Start 2020.10.01 @ 22:19:52 End 2020.10.01 @ 23:22:09 Sessions 1 Manual Loads 0 Difficulty Rogue Special Mode None Game No. 4 Rogue 4 Adventurer 0 Explorer 0 Win Type - Total 0 Types 0/0/0/0/0/0/0/0/0 Lore% 1 Gallery% 4 Achievement% 4 Wizard Run 0 Options --------- ASCII 0 Keyboard 0 Movement Mouse Keybinds 0 Fullscreen 1 Font 18/SmallcapsGlow Map View 76x50 Tactical HUD 1 Map Filters NONE Filters NONE Steam 1 RUN: 2c996f41-3a1a-4670-a7f0-2d415a3545a9